bitfinex-derivatives/quotes_BNBF0:USTF0_20250904
["timestamp","ask_amount","ask_price","bid_price","bid_amount"]
[1757001238749,0.72276377,845.02,844.43,0.79777502]
[1757001239349,0.72276377,845.02,844.42,0.79777502]
[1757001239644,0.20595494,845.03,844.42,0.79777502]
[1757001239944,0.20595494,845.03,844.43,0.79777502]
[1757001243247,0.20595494,845.03,844.44,0.79777502]
[1757001246053,0.92815549,845.03,844.44,0.79777502]
[1757001246353,0.72220055,845.02,844.44,0.79777502]
[1757001246553,0.20595494,845.03,844.44,0.79777502]
[1757001246949,0.20595494,845.03,844.45,0.79777502]
[1757001247454,0.20595494,845.03,844.44,0.79777502]
[1757001247951,0.20595494,845.03,844.29,1.0563581]
[1757001247952,0.20595494,845.03,844.41,0.79777502]
[1757001250257,0.20595494,845.03,844.4,0.79777502]
[1757001251657,0.20595494,845.03,844.42,0.79777502]
[1757001253361,0.20595494,845.03,844.41,0.79777502]
[1757001254058,0.20595494,845.03,844.44,0.79777502]
[1757001254556,0.20595494,845.03,844.4,0.79777502]
[1757001259565,0.20595494,845.03,844.41,0.79777502]
[1757001259965,0.20595494,845.03,844.42,0.79777502]
[1757001261766,0.20595494,845.03,844.46,0.79777502]
[1757001262470,0.20595494,845.03,844.47,0.79777502]
[1757001265171,0.20595494,845.03,843.53,0.20596835]
[1757001265172,0.20595494,845.03,844.48,0.79777502]
[1757001265674,0.20595494,845.03,844.47,0.79777502]
[1757001266073,0.20595494,845.03,844.48,0.79777502]
[1757001266278,0.20595494,845.03,844.46,0.79777502]
[1757001267174,0.20595494,845.03,844.47,0.79777502]
[1757001272081,0.20595494,845.03,844.48,0.79777502]
[1757001274282,0.20595494,845.03,844.49,0.79777502]
[1757001275383,0.20595494,845.03,844.5,0.79777502]
[1757001275587,0.20595494,845.03,844.52,0.79777502]
[1757001276188,0.20595494,845.03,844.53,0.79777502]
[1757001276985,0.20595494,845.03,844.51,0.79777502]
[1757001277183,0.20595494,845.03,844.52,0.79777502]
[1757001279389,0.92995,845.03,844.52,0.79777502]
[1757001279587,0.20595494,845.03,844.52,0.79777502]
[1757001281089,0.20595494,845.03,844.54,0.79777502]
[1757001281791,0.20595494,845.03,844.53,0.79777502]
[1757001282288,0.20595494,845.03,844.54,0.79777502]
[1757001283789,0.72413157,845.14,844.54,0.79777502]
[1757001284093,0.72413157,845.14,844.56,0.79777502]
[1757001284293,0.72413157,845.13,844.58,0.79777502]
[1757001284587,0.72413157,845.12,844.58,0.79777502]
[1757001284788,0.72413157,845.11,844.58,0.79777502]
[1757001284992,0.72413157,845.1,844.58,0.79777502]
[1757001285190,0.72413157,845.09,844.58,0.79777502]
[1757001285489,0.72413157,845.08,844.58,0.79777502]
[1757001285688,0.72413157,845.07,844.41,1.0563581]
[1757001285893,0.72413157,845.06,844.58,0.7980363]
[1757001286188,0.72413157,845.05,844.51,0.7980363]
[1757001286392,0.20591168,845.16,844.51,0.7980363]
[1757001286592,0.20591168,845.16,844.54,0.7980363]
[1757001288494,0.93061852,845.16,844.54,0.7980363]
[1757001288696,0.72470684,845.15,844.54,0.7980363]
[1757001288898,0.72470684,845.14,844.54,0.7980363]
[1757001289098,0.72470684,845.13,844.54,0.7980363]
[1757001289293,0.72470684,845.12,844.54,0.7980363]
[1757001289496,0.72470684,845.11,844.54,0.7980363]
[1757001289701,0.72470684,845.1,844.54,0.7980363]
[1757001289898,0.72470684,845.09,844.54,0.7980363]
[1757001290093,0.72470684,845.08,844.54,0.7980363]
[1757001290297,0.20591168,845.16,844.54,0.7980363]
[1757001293204,0.20591168,845.16,844.61,0.7980363]
[1757001293404,0.93055479,845.16,844.61,0.7980363]
[1757001294101,1.72644996,845.16,844.62,0.7980363]
[1757001294301,0.72464311,845.15,844.62,0.7980363]
[1757001295505,0.72464311,845.14,844.61,0.7980363]
[1757001295805,0.72464311,845.13,844.61,0.7980363]
[1757001296002,0.72464311,845.12,844.61,0.7980363]
[1757001296201,0.72464311,845.11,844.61,0.7980363]
[1757001296402,0.72464311,845.1,844.61,0.7980363]
[1757001296601,0.72464311,845.09,844.61,0.7980363]
[1757001296803,0.72464311,845.08,844.61,0.7980363]
[1757001297014,0.72464311,845.07,844.61,0.7980363]
[1757001297206,0.72464311,845.06,844.61,0.7980363]
[1757001297403,0.72464311,845.05,844.61,0.7980363]
[1757001297610,0.20591168,845.16,844.61,0.7980363]
[1757001300903,0.20591168,845.16,844.59,0.7980363]
[1757001301207,0.9306065,845.16,844.59,0.7980363]
[1757001301507,0.72469482,845.15,844.59,0.7980363]
[1757001301708,0.72469482,845.14,844.59,0.7980363]
[1757001302005,0.72469482,845.13,844.59,0.7980363]
[1757001302308,0.72469482,845.12,844.59,0.7980363]
[1757001302504,0.72469482,845.11,844.59,0.7980363]
[1757001302706,0.72469482,845.1,844.59,0.7980363]
[1757001302906,0.72469482,845.09,844.59,0.7980363]
[1757001303106,0.72469482,845.08,844.59,0.7980363]
[1757001303403,0.72469482,845.07,844.58,0.7980363]
[1757001303604,0.72469482,845.06,844.56,0.7980363]
[1757001303808,0.72469482,845.05,844.56,0.7980363]
[1757001304004,0.20591168,845.16,844.56,0.7980363]
[1757001306907,0.20591168,845.16,844.55,0.7980363]
[1757001307304,0.20591168,845.16,844.51,0.7980363]
[1757001310107,0.20591168,845.16,844.5,0.7980363]
[1757001310409,0.93066371,845.16,844.5,0.7980363]
[1757001312109,1.72655888,845.16,844.52,0.7980363]
[1757001312307,1.5206472,845.15,844.52,0.7980363]
[1757001312506,0.20591168,845.16,844.32,1.0563581]
[1757001312507,0.72475203,845.14,844.51,0.7980363]
[1757001312706,0.72475203,845.13,844.51,0.7980363]
[1757001312906,0.72475203,845.12,844.48,0.7980363]
[1757001313108,0.72475203,845.11,844.48,0.7980363]
[1757001313309,0.72475203,845.1,844.48,0.7980363]
[1757001313505,0.72475203,845.09,844.48,0.7980363]
[1757001313809,0.72475203,845.08,844.48,0.7980363]
[1757001314007,0.72475203,845.07,844.48,0.7980363]
[1757001314206,0.72475203,845.06,844.48,0.7980363]
[1757001314410,0.72475203,845.05,844.48,0.7980363]
[1757001314608,0.72475203,845.04,844.48,0.7980363]
[1757001314808,0.72475203,845.03,844.48,0.7980363]
[1757001315007,0.72475203,845.02,844.48,0.7980363]
[1757001315207,0.72475203,845.01,844.48,0.7980363]
[1757001315408,0.72475203,845.0,844.48,0.7980363]
[1757001315608,0.72475203,844.99,844.48,0.7980363]
[1757001315811,0.72475203,844.98,844.48,0.7980363]
[1757001316108,0.72475203,844.97,844.48,0.7980363]
[1757001316311,0.79589517,845.14,844.48,0.7980363]
[1757001316510,0.79589517,845.11,844.5,0.7980363]
[1757001316714,0.79589517,845.09,844.48,0.7980363]
[1757001316908,0.7254108,845.08,844.48,0.7980363]
[1757001317615,0.7254108,845.08,844.47,0.7980363]
[1757001318309,0.7254108,845.08,844.46,0.7980363]
[1757001318510,0.7254108,845.07,844.46,0.7980363]
[1757001318714,0.7254108,845.06,844.46,0.7980363]
[1757001318915,0.7254108,845.05,844.46,0.7980363]
[1757001319110,0.7254108,845.04,844.46,0.7980363]
[1757001319315,0.7254108,845.03,844.46,0.7980363]
[1757001319614,0.7254108,845.02,844.46,0.7980363]
[1757001319815,0.7254108,845.01,844.45,0.7980363]
[1757001320015,0.7254108,845.0,844.45,0.7980363]
[1757001320212,0.7254108,844.99,844.45,0.7980363]
[1757001320416,0.7254108,844.98,844.45,0.7980363]
[1757001320616,0.7254108,844.97,844.45,0.7980363]
[1757001320913,0.7254108,844.96,844.45,0.7980363]
[1757001321113,0.7254108,844.95,844.45,0.7980363]
[1757001321416,0.79589517,845.13,844.45,0.7980363]
[1757001321616,0.72532287,845.12,844.45,0.7980363]
[1757001322016,1.52121804,845.12,844.45,0.7980363]
[1757001322216,0.72532287,845.11,844.45,0.7980363]
[1757001322917,0.72532287,845.11,844.06,1.5845371]
[1757001322918,1.52121804,845.11,844.46,0.7980363]
[1757001323213,0.72532287,845.1,844.46,0.7980363]
[1757001324419,0.79589517,845.12,844.45,0.7980363]
[1757001324618,0.72524589,845.11,844.45,0.7980363]
[1757001325113,0.79589517,845.12,844.45,0.7980363]
[1757001325314,0.72523769,845.11,844.45,0.7980363]
[1757001325819,0.79589517,845.12,844.45,0.7980363]
[1757001326020,0.72525998,845.11,844.45,0.7980363]
[1757001326317,1.52115515,845.11,844.46,0.7980363]
[1757001326520,0.79589517,845.11,844.45,0.7980363]
[1757001326716,0.79589517,845.13,844.45,0.7980363]
[1757001327317,1.52114402,845.12,844.45,0.7980363]
[1757001327517,0.72524885,845.11,844.45,0.7980363]
[1757001328422,1.52114402,845.11,844.45,0.7980363]
[1757001328623,0.72524885,845.1,844.45,0.7980363]
[1757001328917,0.79589517,845.09,844.44,0.7980363]
[1757001329116,0.79589517,845.1,844.44,0.7980363]
[1757001329319,0.72516326,845.09,844.44,0.7980363]
[1757001329520,1.52105843,845.09,844.44,0.7980363]
[1757001329719,0.79589517,845.06,844.41,0.7980363]
[1757001329923,0.72516326,845.05,844.41,0.7980363]
[1757001330120,1.52105843,845.05,844.4,0.7980363]
[1757001330323,0.72516326,845.04,844.4,0.7980363]
[1757001330524,1.52105843,845.04,844.4,0.7980363]
[1757001330820,0.72516326,845.03,844.4,0.7980363]
[1757001331523,0.72516326,845.02,844.4,0.7980363]
[1757001331721,0.72516326,845.01,844.4,0.7980363]
[1757001331924,0.72516326,845.0,844.4,0.7980363]
[1757001332220,0.72516326,844.99,844.4,0.7980363]
[1757001332425,0.72516326,844.98,844.39,0.7980363]
[1757001332626,0.72516326,844.97,844.39,0.7980363]
[1757001332822,0.72516326,844.96,844.39,0.7980363]
[1757001333021,0.72516326,844.95,844.39,0.7980363]
[1757001333223,0.79589517,845.05,844.39,0.7980363]
[1757001333427,0.72494897,845.04,844.29,0.7980363]
[1757001333629,0.72494897,845.03,844.29,0.7980363]
[1757001333927,0.72494897,845.02,844.29,0.7980363]
[1757001334126,0.72494897,845.01,844.29,0.7980363]
[1757001334328,0.72494897,845.0,844.29,0.7980363]
[1757001334526,0.72494897,844.99,844.29,0.7980363]
[1757001334727,0.72494897,844.98,844.29,0.7980363]
[1757001334924,0.72494897,844.97,844.29,0.7980363]
[1757001335126,0.20591168,845.16,844.29,0.7980363]
[1757001336429,0.20591168,845.16,844.28,0.7980363]
[1757001341533,0.93067978,845.16,844.28,0.7980363]
[1757001341738,0.7247681,845.15,844.28,0.7980363]
[1757001341938,0.7247681,845.14,844.28,0.7980363]
[1757001342235,0.7247681,845.13,844.28,0.7980363]
[1757001342438,0.7247681,845.12,844.27,0.7980363]
[1757001342635,0.7247681,845.11,844.27,0.7980363]
[1757001342835,0.7247681,845.1,844.27,0.7980363]
[1757001343035,0.7247681,845.09,844.27,0.7980363]
[1757001343237,0.7247681,845.09,843.83,0.20590619]
[1757001343238,0.7247681,845.08,844.35,0.7980363]
[1757001343440,0.7247681,845.07,844.35,0.7980363]
[1757001343640,0.7247681,845.06,844.35,0.7980363]
[1757001343936,0.7247681,845.05,844.35,0.7980363]
[1757001344136,0.7247681,845.04,844.35,0.7980363]
[1757001344336,0.7247681,845.03,844.35,0.7980363]
[1757001344536,0.7247681,845.02,844.35,0.7980363]
[1757001344740,0.7247681,845.01,844.35,0.7980363]
[1757001344936,0.7247681,845.0,844.35,0.7980363]
[1757001345141,0.7247681,844.99,844.35,0.7980363]
[1757001345341,0.7247681,844.98,844.35,0.7980363]
[1757001345538,0.7247681,844.97,844.35,0.7980363]
[1757001345741,0.7247681,844.96,844.35,0.7980363]
[1757001345940,0.7247681,844.95,844.35,0.7980363]
[1757001346138,0.79589517,845.11,844.35,0.7980363]
[1757001346338,0.72474724,845.1,844.35,0.7980363]
[1757001346544,0.72474724,845.1,844.36,0.7980363]
[1757001346839,0.72474724,845.09,844.36,0.7980363]
[1757001347042,0.72474724,845.08,844.36,0.7980363]
[1757001347240,0.72474724,845.07,844.36,0.7980363]
[1757001347443,0.72474724,845.06,844.37,0.7980363]
[1757001347743,0.72474724,845.05,844.37,0.7980363]
[1757001348038,0.72474724,845.04,844.37,0.7980363]
[1757001348343,0.72474724,845.03,844.37,0.7980363]
[1757001348541,0.72474724,845.02,844.43,0.7980363]
[1757001348740,0.72474724,845.01,844.44,0.7980363]
[1757001349044,0.72474724,845.0,844.42,0.7980363]
[1757001349342,0.72474724,844.99,844.42,0.7980363]
[1757001349538,0.72474724,844.98,844.42,0.7980363]
[1757001349743,0.72474724,844.97,844.42,0.7980363]
[1757001349938,0.72474724,844.96,844.42,0.7980363]
[1757001350143,0.79589517,845.09,844.42,0.7980363]
[1757001350439,0.724913,845.08,844.42,0.7980363]
[1757001351340,0.724913,845.08,844.43,0.7980363]
[1757001352244,0.724913,845.08,844.41,0.7980363]
[1757001352443,0.724913,845.07,844.41,0.7980363]
[1757001352644,0.724913,845.06,844.41,0.7980363]
[1757001352839,0.724913,845.05,844.41,0.7980363]
[1757001353040,0.724913,845.04,844.41,0.7980363]
[1757001353246,0.724913,845.03,844.41,0.7980363]
[1757001353542,0.724913,845.02,844.41,0.7980363]
[1757001353741,0.724913,845.01,844.41,0.7980363]
[1757001353942,0.724913,845.0,844.41,0.7980363]
[1757001354148,0.724913,844.99,844.41,0.7980363]
[1757001354344,0.724913,844.98,844.41,0.7980363]
[1757001354548,0.724913,844.97,844.41,0.7980363]
[1757001354749,0.724913,844.96,844.42,0.7980363]
[1757001354946,0.79589517,845.11,844.42,0.7980363]
[1757001355147,0.72516179,845.1,844.42,0.7980363]
[1757001356148,1.52105696,845.1,844.42,0.7980363]
[1757001356448,0.72516179,845.09,844.42,0.7980363]
[1757001357348,0.72516179,845.09,844.43,0.7980363]
[1757001358852,0.79589517,845.07,844.45,0.7980363]
[1757001359049,0.72516179,845.06,844.45,0.7980363]
[1757001361154,0.79589517,845.03,844.47,0.7980363]
[1757001361354,0.72516179,845.02,844.47,0.7980363]
[1757001361653,0.20591168,845.16,844.47,0.7980363]
[1757001361654,0.72516179,845.01,844.47,0.7980363]
[1757001361953,0.72516179,845.0,844.47,0.7980363]
[1757001362250,0.72516179,844.99,844.47,0.7980363]
[1757001362556,0.72516179,844.98,844.47,0.7980363]
[1757001362854,0.72516179,844.97,844.45,0.7980363]
[1757001363148,0.72516179,844.96,844.44,0.7980363]
[1757001363354,0.72516179,844.95,844.44,0.7980363]
[1757001363555,0.72516179,844.94,844.44,0.7980363]
[1757001363851,0.72516179,844.93,844.44,0.7980363]
[1757001364153,0.72516179,844.92,844.44,0.7980363]
[1757001364358,0.72516179,844.91,844.45,0.7980363]
[1757001364654,0.72516179,844.9,844.44,0.7980363]
[1757001364857,0.72516179,844.89,844.44,0.7980363]
[1757001365058,0.79589517,845.02,844.44,0.7980363]
[1757001365257,0.72563348,845.01,844.44,0.7980363]
[1757001365557,1.52152865,845.01,844.45,0.7980363]
[1757001365856,0.72563348,845.0,844.45,0.7980363]
[1757001367355,1.52152865,845.0,844.46,0.7980363]
[1757001367555,0.72563348,844.99,844.46,0.7980363]
[1757001367758,0.72563348,844.99,844.44,0.7980363]
[1757001368053,0.72563348,844.98,844.43,0.7980363]
[1757001368252,0.72563348,844.97,844.43,0.7980363]
[1757001368453,0.72563348,844.96,844.43,0.7980363]
[1757001368659,0.72563348,844.95,844.46,0.7980363]
[1757001368857,0.72563348,844.94,844.44,0.7980363]
[1757001369054,0.72563348,844.93,844.44,0.7980363]
[1757001369254,0.72563348,844.92,844.44,0.7980363]
[1757001369452,0.72563348,844.91,844.44,0.7980363]
[1757001369657,0.72563348,844.9,844.44,0.7980363]
[1757001369856,0.72563348,844.89,844.44,0.7980363]
[1757001370153,0.72563348,844.88,844.44,0.7980363]
[1757001370454,0.72563348,844.87,844.44,0.7980363]
[1757001370759,0.72563348,844.86,844.44,0.7980363]
[1757001370955,0.72563348,844.85,844.44,0.7980363]
[1757001371155,0.79589517,844.96,844.44,0.7980363]
[1757001371458,0.72607928,844.95,844.44,0.7980363]
[1757001371853,0.72607928,844.94,844.44,0.7980363]
[1757001372058,0.72607928,844.93,844.44,0.7980363]
[1757001372258,0.72607928,844.92,844.44,0.7980363]
[1757001372455,0.72607928,844.91,844.45,0.7980363]
[1757001372758,0.72607928,844.9,844.45,0.7980363]
[1757001373058,0.72607928,844.89,844.45,0.7980363]
[1757001373258,0.72607928,844.88,844.44,0.7980363]
[1757001373558,0.72607928,844.87,844.45,0.7980363]
[1757001373754,0.72607928,844.86,844.45,0.7980363]
[1757001373959,0.72607928,844.85,844.44,0.7980363]
[1757001374160,0.72607928,844.84,844.44,0.7980363]
[1757001374356,0.72610748,844.83,844.35,0.7980363]
[1757001374656,0.72614854,844.82,844.35,0.7980363]
[1757001374854,0.79589517,844.98,844.35,0.7980363]
[1757001375158,0.72614851,844.97,844.35,0.7980363]
[1757001375360,0.72614851,844.97,844.34,0.7980363]
[1757001375555,0.72614851,844.96,844.35,0.7980363]
[1757001375759,0.72614851,844.95,844.35,0.7980363]
[1757001376059,0.72614851,844.94,844.35,0.7980363]
[1757001376354,0.72614851,844.93,844.34,0.7980363]
[1757001376556,0.72614851,844.92,844.34,0.7980363]
[1757001376860,0.72614851,844.91,844.34,0.7980363]
[1757001377057,0.72614851,844.9,844.34,0.7980363]
[1757001377260,0.72614851,844.89,844.34,0.7980363]
[1757001377460,0.72614851,844.88,844.34,0.7980363]
[1757001377659,0.72614851,844.87,844.34,0.7980363]
[1757001377960,0.72614851,844.86,844.34,0.7980363]
[1757001378161,0.72614851,844.85,844.34,0.7980363]
[1757001378362,0.72614851,844.84,844.34,0.7980363]
[1757001378564,0.72614851,844.83,844.36,0.7980363]
[1757001378864,0.72614851,844.82,844.31,0.7980363]
[1757001379065,0.72614851,844.81,844.31,0.7980363]
[1757001379266,0.72614851,844.8,844.3,0.7980363]
[1757001379466,0.72614851,844.79,844.3,0.7980363]
[1757001379665,0.72614851,844.78,844.3,0.7980363]
[1757001379861,0.72614851,844.77,844.3,0.7980363]
[1757001380065,0.79589517,844.92,844.3,0.7980363]
[1757001380365,0.72640006,844.91,844.3,0.7980363]
[1757001380565,0.72640006,844.9,844.3,0.7980363]
[1757001380765,0.72640006,844.89,844.3,0.7980363]
[1757001381065,0.72640006,844.88,844.3,0.7980363]
[1757001381265,0.72640006,844.87,844.29,0.7980363]
[1757001381560,0.72640006,844.86,844.29,0.7980363]
[1757001381762,0.72640006,844.85,844.29,0.7980363]
[1757001381965,0.72640006,844.84,844.29,0.7980363]
[1757001382262,0.72640006,844.83,844.29,0.7980363]
[1757001382465,0.72640006,844.82,844.29,0.7980363]
[1757001382667,0.72640006,844.81,844.29,0.7980363]
[1757001382866,0.72640006,844.8,844.29,0.7980363]
[1757001383162,0.72640006,844.79,844.29,0.7980363]
[1757001383366,0.72640006,844.78,844.29,0.7980363]
[1757001383567,0.79589517,844.93,844.29,0.7980363]
[1757001383764,0.7269297,844.92,844.29,0.7980363]
[1757001383968,0.7269297,844.91,844.29,0.7980363]
[1757001384268,0.7269297,844.9,844.28,0.7980363]
[1757001384464,0.7269297,844.89,844.28,0.7980363]
[1757001384669,0.7269297,844.88,844.28,0.7980363]
[1757001384864,0.7269297,844.87,844.28,0.7980363]
[1757001385067,0.7269297,844.86,844.28,0.7980363]
[1757001385368,0.7269297,844.85,844.28,0.7980363]
[1757001385568,0.7269297,844.84,844.28,0.7980363]
[1757001385865,0.7269297,844.83,844.28,0.7980363]
[1757001386065,0.7269297,844.82,844.28,0.7980363]
[1757001386264,0.79589517,844.94,843.83,0.20590619]
[1757001386265,0.7269297,844.81,844.27,0.7980363]
[1757001386467,0.7269297,844.8,844.27,0.7980363]
[1757001386765,0.7269297,844.79,844.28,0.7980363]
[1757001386971,0.79589517,844.94,844.28,0.7980363]
[1757001387169,0.72680398,844.93,844.28,0.7980363]
[1757001387566,0.79589517,844.92,844.29,0.7980363]
[1757001388172,0.72678501,844.91,844.29,0.7980363]
[1757001388372,0.72678501,844.91,844.28,0.7980363]
[1757001388570,0.79589517,844.91,844.28,0.7980363]
[1757001388969,0.79589517,844.9,844.21,0.7980363]
[1757001389171,0.72679201,844.89,844.21,0.7980363]
[1757001389972,0.72683007,844.88,844.21,0.7980363]
[1757001390368,0.72683007,844.87,844.2,0.7980363]
[1757001390573,0.79589517,844.91,844.2,0.7980363]
[1757001390574,0.72683007,844.86,844.2,0.7980363]
[1757001390773,0.72683007,844.85,844.2,0.7980363]
[1757001390972,0.72683007,844.84,844.2,0.7980363]
[1757001391176,0.72683007,844.83,844.2,0.7980363]
[1757001391472,0.72683007,844.82,844.2,0.7980363]
[1757001391675,0.72683007,844.81,844.2,0.7980363]
[1757001391875,0.20591168,845.16,843.83,0.20590619]
[1757001391876,0.72683007,844.8,844.19,0.7980363]
[1757001392175,0.72683007,844.79,844.18,0.7980363]
[1757001392372,0.72683007,844.78,844.17,0.7980363]
[1757001392574,0.72683007,844.77,844.1,0.7980363]
[1757001392771,0.72683007,844.76,844.02,0.7980363]
[1757001393075,0.72646205,844.75,844.02,0.7980363]
[1757001393277,0.72646205,844.74,844.02,0.7980363]
[1757001393574,0.72646205,844.73,844.01,0.79729382]
[1757001393776,0.79715483,844.98,844.01,0.79729382]
[1757001393972,0.72633737,844.97,844.01,0.79729382]
[1757001394173,0.72633737,844.97,844.0,0.79729382]
[1757001394475,0.72633737,844.96,844.0,0.79729382]
[1757001394676,0.72633737,844.95,844.0,0.79729382]
[1757001394972,0.72633737,844.94,844.0,0.79729382]
[1757001395278,0.72633737,844.93,843.99,0.79729382]
[1757001395472,0.72633737,844.92,843.99,0.79729382]
[1757001395675,0.72633737,844.91,843.99,0.79729382]
[1757001395877,0.72633737,844.9,843.99,0.79729382]
[1757001396178,0.72633737,844.89,843.98,0.79729382]
[1757001396478,0.72633737,844.88,843.98,0.79729382]
[1757001396775,0.72633737,844.87,843.98,0.79729382]
[1757001396983,0.72633737,844.86,843.98,0.79729382]
[1757001397183,0.72633737,844.85,843.98,0.79729382]
[1757001397383,0.72633737,844.84,843.98,0.79729382]
[1757001397581,0.72633737,844.83,843.98,0.79729382]
[1757001397786,0.72633737,844.82,843.98,0.79729382]
[1757001397986,0.72633737,844.81,843.98,0.79729382]
[1757001398186,0.72633737,844.8,843.98,0.79729382]
[1757001398386,0.72633737,844.79,843.98,0.79729382]
[1757001398582,0.72633737,844.78,843.98,0.79729382]
[1757001398784,0.79715483,845.0,843.98,0.79729382]
[1757001398785,0.72633737,844.77,843.98,0.79729382]
[1757001398986,0.72633737,844.76,843.98,0.79729382]
[1757001399284,0.79715483,845.01,843.97,0.79729382]
[1757001399588,0.79715483,844.99,843.95,0.79729382]
[1757001399788,0.79715483,844.92,843.98,0.79729382]
[1757001399987,1.0574839,845.14,843.68,0.20602749]
[1757001399988,0.79715483,844.8,843.86,0.79729382]
[1757001400185,0.7256826,844.79,843.85,0.79729382]
[1757001400388,0.7256826,844.78,843.85,0.79729382]
[1757001400584,0.7256826,844.77,843.85,0.79729382]
[1757001400785,0.7256826,844.76,843.85,0.79729382]
[1757001400990,0.7256826,844.75,843.85,0.79729382]
[1757001401288,0.7256826,844.74,843.84,0.79729382]
[1757001401487,0.7256826,844.73,843.84,0.79729382]
[1757001401689,0.7256826,844.72,843.84,0.79729382]
[1757001401889,0.7256826,844.71,843.83,0.79729382]
[1757001402091,0.7256826,844.7,843.83,0.79729382]
[1757001402390,0.7256826,844.69,843.82,0.79729382]
[1757001402686,0.7256826,844.68,843.82,0.79729382]
[1757001402885,0.7256826,844.67,843.82,0.79729382]
[1757001403189,0.7256826,844.66,843.82,0.79729382]
[1757001403387,0.7256826,844.65,843.81,0.79729382]
[1757001403585,0.79715483,844.85,843.81,0.79729382]
[1757001403886,0.72463031,844.84,843.81,0.79729382]
[1757001404289,0.72463031,844.84,843.68,0.20602749]
[1757001404290,0.72463031,844.84,843.8,0.79729382]
[1757001404585,0.72463031,844.83,843.8,0.79729382]
[1757001404785,0.72463031,844.82,843.8,0.79729382]
[1757001404985,0.72463031,844.81,843.8,0.79729382]
[1757001405186,0.72463031,844.8,843.79,0.79729382]
[1757001405388,0.72463031,844.79,843.79,0.79729382]
[1757001405587,0.72432283,844.78,843.79,0.79729382]
[1757001405789,0.72432283,844.77,843.79,0.79729382]
[1757001406088,0.72432283,844.76,843.79,0.79729382]
[1757001406288,0.72432283,844.75,843.78,0.79729382]
[1757001406488,0.72432283,844.74,843.78,0.79729382]
[1757001406686,0.72432283,844.73,843.78,0.79729382]
[1757001406890,0.72432283,844.72,843.78,0.79729382]
[1757001407086,0.72432283,844.71,843.78,0.79729382]
[1757001407286,0.72432283,844.7,843.77,0.79729382]
[1757001407488,0.72432283,844.69,843.77,0.79729382]
[1757001407687,0.72432283,844.68,843.77,0.79729382]
[1757001407890,0.72432283,844.67,843.77,0.79729382]
[1757001408186,0.72432283,844.66,843.76,0.79729382]
[1757001408390,0.72432283,844.65,843.76,0.79729382]
[1757001408591,0.79715483,844.86,843.76,0.79729382]
[1757001408789,0.72395652,844.85,843.76,0.79729382]
[1757001409290,0.72395652,844.85,843.75,0.79729382]
[1757001409691,0.79715483,844.78,843.81,0.79729382]
[1757001409892,0.72395652,844.77,843.81,0.79729382]
[1757001410288,0.72395652,844.77,843.8,0.79729382]
[1757001410492,0.72395652,844.78,843.8,0.79729382]
[1757001411797,0.79715483,844.77,843.81,0.79729382]
[1757001411994,0.79715483,844.74,843.83,0.79729382]
[1757001412194,0.72395652,844.73,843.82,0.79729382]
[1757001412394,0.72395652,844.74,843.82,0.79729382]
[1757001412598,1.52111135,844.74,843.83,0.79729382]
[1757001412798,0.72395652,844.73,843.83,0.79729382]
[1757001412998,0.72395652,844.73,843.79,0.79729382]
[1757001413194,0.72395652,844.79,843.79,0.79729382]
[1757001413401,0.72395652,844.79,843.8,0.79729382]
[1757001413596,0.72395652,844.8,843.8,0.79729382]
[1757001414104,0.72395652,844.8,843.83,0.79729382]
[1757001414298,0.72395652,844.91,843.88,0.79729382]
[1757001414500,0.72395652,844.94,843.88,0.79729382]
[1757001415499,0.7235896,844.94,843.88,0.79729382]
[1757001415797,1.52074443,844.94,843.88,0.79729382]
[1757001416097,0.7235896,844.93,843.88,0.79729382]
[1757001416302,0.72361184,844.93,843.88,0.79729382]
[1757001417203,0.72361184,844.93,843.89,0.79729382]
[1757001421301,1.52076667,844.93,843.9,0.79729382]
[1757001421500,0.72361184,844.92,843.9,0.79729382]
[1757001422207,0.79715483,844.9,843.9,0.79729382]
[1757001422507,0.79715483,844.82,843.95,0.79729382]
[1757001422708,0.72361184,844.81,843.93,0.79729382]
[1757001422907,0.72361184,844.85,843.93,0.79729382]
[1757001423304,0.72397558,844.85,843.93,0.79729382]
[1757001424109,1.52113041,844.85,843.94,0.79729382]
[1757001424309,0.72397558,844.84,843.94,0.79729382]
[1757001425006,0.72397558,844.84,843.93,0.79729382]
[1757001425210,0.79715483,844.85,843.94,0.79729382]
[1757001425411,0.72410497,844.84,843.94,0.79729382]
[1757001426505,0.72410497,844.84,843.78,1.0563581]
[1757001426506,1.5212598,844.84,843.95,0.79729382]
[1757001426705,0.72410497,844.83,843.95,0.79729382]
[1757001426911,0.79715483,844.85,843.95,0.79729382]
[1757001426912,0.72410497,844.82,843.95,0.79729382]
[1757001427112,0.72410497,844.81,843.95,0.79729382]
[1757001427411,0.72410497,844.8,843.95,0.79729382]
[1757001427714,0.72410497,844.79,843.95,0.79729382]
[1757001427907,0.72410497,844.78,843.95,0.79729382]
[1757001428107,0.72410497,844.77,843.95,0.79729382]
[1757001428310,0.79715483,844.84,843.96,0.79729382]
[1757001428311,0.72410497,844.76,843.96,0.79729382]
[1757001428510,0.72410497,844.75,843.96,0.79729382]
[1757001428708,0.79715483,844.84,843.96,0.79729382]
[1757001428709,0.72410497,844.74,843.96,0.79729382]
[1757001428906,0.72410497,844.73,843.96,0.79729382]